{"text_format":"1","workbook":"xlsx","n_sheets":2,"sheets":["PROJET(0)","PROJET(1)"],"not_rendered":{"charts":0,"images":2,"macros":1,"external_links":0,"defined_names":2,"comments":0,"pivot_tables":0},"unopened":[],"bounds":{"document_bytes":16777216,"sheet_cells":100000,"rows_first":2000,"rows_last":500,"rows_between":2000,"halvings":0,"cell_chars":16384,"cell_head_chars":4096},"cells_cut":0,"cells_raw":0,"read":"whole","date_system":"1900"}

{"sheet":"PROJET(0)","index":0,"n_rows":17,"n_cols":8,"rows_kept":17,"cut":false,"hidden":true,"merged":[[8,4,8,7],[4,1,4,2],[6,1,6,7],[5,1,5,3],[3,3,3,6]]}
[]
[null,{"$f":"ROW()-12","v":-10}]
[null,null,null,null,null,null,null,"Offert par :"]
[]
[null,"LA SYNTÈSE",null,"TITRE DE MON PROJET : (Nom court) >>","Premier projet "]
[null,"▼ Expliquez votre idée/projet (Alt + Return pour aller à la ligne). ▼ "]
[]
[]
[null,{"$f":"IF(F10>H10,F10,\"\")","v":""},null,null,{"$f":"IF(H10<F10,\"VOTRE PROJET SEMBLE VOUS APPORTER SATISFACTION\",\nIF(H10>F10,\"VOTRE PROJET SEMBLE AVOIR TROP DE CONTRADICTIONS, SOYEZ VIGILANT.E\",\"\"))","v":""}]
[null,null,null,null,"VALEUR TOTALE DES POURS",{"$f":"SUM(F14:F9978)","v":0},"VALEUR TOTALE DES CONTRES",{"$f":"SUM(F14:H9978)","v":0}]
[]
[null,"N°","TITRE DE L'IDÉE","Détaillez vos idées ci-dessous","Détaillez les pours\net les certitudes de cette idée ","À Combien évaluez-vous \nles pours\nde 1 à 10","Détaillez les contres \nou les incertitudes de cette idée ","À Combien évaluez-vous \nles contres\nde 1 à 10"]
[null,{"$f":"ROW()-12","v":1}]
[null,{"$f":"ROW()-12","v":2}]
[null,{"$f":"ROW()-12","v":3}]
[null,{"$f":"ROW()-12","v":4}]
[null,{"$f":"ROW()-12","v":5}]

{"sheet":"PROJET(1)","index":1,"n_rows":17,"n_cols":8,"rows_kept":17,"cut":false,"hidden":false,"merged":[[3,3,3,6],[4,1,4,2],[5,1,5,3],[6,1,6,7],[8,4,8,7]]}
[]
[null,{"$f":"ROW()-12","v":-10}]
[null,null,null,null,null,null,null,"Offert par :"]
[]
[null,"LA SYNTÈSE",null,"TITRE DE MON PROJET : (Nom court) >>","Premier projet "]
[null,"▼ Expliquez votre idée/projet (Alt + Return pour aller à la ligne). ▼ "]
[]
[]
[null,{"$f":"IF(F10>H10,F10,\"\")","v":""},null,null,{"$f":"IF(H10<F10,\"VOTRE PROJET SEMBLE VOUS APPORTER SATISFACTION\",\nIF(H10>F10,\"VOTRE PROJET SEMBLE AVOIR TROP DE CONTRADICTIONS, SOYEZ VIGILANT.E\",\"\"))","v":""}]
[null,null,null,null,"VALEUR TOTALE DES POURS",{"$f":"SUM(F14:F9978)","v":0},"VALEUR TOTALE DES CONTRES",{"$f":"SUM(F14:H9978)","v":0}]
[]
[null,"N°","TITRE DE L'IDÉE","Détaillez vos idées ci-dessous","Détaillez les pours\net les certitudes de cette idée ","À Combien évaluez-vous \nles pours\nde 1 à 10","Détaillez les contres \nou les incertitudes de cette idée ","À Combien évaluez-vous \nles contres\nde 1 à 10"]
[null,{"$f":"ROW()-12","v":1}]
[null,{"$f":"ROW()-12","v":2}]
[null,{"$f":"ROW()-12","v":3}]
[null,{"$f":"ROW()-12","v":4}]
[null,{"$f":"ROW()-12","v":5}]